fUST/lending_fUST_20260507
["ID","MTS","AMOUNT","RATE_DAILY","PERIOD"]
[421750068,1778098241000,-3614.94128737,0.000152,2]
[421750052,1778098241000,-160.0,0.00015056,2]
[421750065,1778098241000,-537.6845,0.00015143,2]
[421750055,1778098241000,-160.0,0.00015056,2]
[421750061,1778098241000,-162.380719,0.00015143,2]
[421750067,1778098241000,-557.5788265,0.00015198,2]
[421750056,1778098241000,-234.480961,0.00015056,2]
[421750059,1778098241000,-1036.812265,0.00015068,2]
[421750058,1778098241000,-544.28,0.00015068,2]
[421750054,1778098241000,-404.356981,0.00015056,2]
[421750060,1778098241000,-400.0,0.000151,2]
[421750062,1778098241000,-151.0,0.00015143,2]
[421750090,1778098244000,-36.77750545,0.000129,2]
[421750089,1778098244000,-2080.55446787,0.00012732,2]
[421750100,1778098247000,-314.07576639,0.00012771,2]
[421750099,1778098247000,-1443.25030795,0.00012771,2]
[421750103,1778098290000,200.0,0.00019458,120]
[421750104,1778098590000,200.0,0.00019238,120]
[421750105,1778099190000,200.0,0.00018941,120]
[421750107,1778099250000,200.0,0.00019529,120]
[421750108,1778099428000,7910.01,0.0001972,120]
[421750186,1778099433000,-3331.7982655,0.00010544,2]
[421750279,1778099437000,-300.0,0.00012107,2]
[421750278,1778099437000,-161.57016804,0.00011871,2]
[421750277,1778099437000,-160.0,0.00011871,2]
[421750280,1778099437000,-300.0,0.00012108,2]
[421750276,1778099437000,-160.0,0.00011871,2]
[421750275,1778099437000,-160.0,0.00011871,2]
[421750274,1778099437000,-247.76237212,0.00010732,2]
[421750273,1778099437000,-1668.2017345,0.00010544,2]
[421750310,1778099438000,-3114.17782144,0.00014124,2]
[421750305,1778099438000,-600.0,0.00013736,2]
[421750308,1778099438000,-500.0,0.00014015,2]
[421750302,1778099438000,-179.555493,0.00013699,2]
[421750304,1778099438000,-1000.0,0.00013699,2]
[421750307,1778099438000,-250.0,0.00013932,2]
[421750311,1778099438000,-173.0614654,0.00014216,2]
[421750309,1778099438000,-779.32377914,0.00014124,2]
[421750312,1778099438000,-7004.4014235,0.00014216,2]
[421750314,1778099438000,-2214.0,0.00014384,2]
[421750315,1778099438000,-645.0,0.00014384,2]
[421750313,1778099438000,-500.0,0.00014289,2]
[421750301,1778099438000,-180.09545059,0.00013699,2]
[421750318,1778099438000,-442.0,0.00014384,2]
[421750317,1778099438000,-185.0,0.00014384,2]
[421750319,1778099438000,-500.0,0.00014563,2]
[421750320,1778099438000,-336.95682608,0.00014732,2]
[421750322,1778099438000,-537.6845,0.00014847,2]
[421750321,1778099438000,-500.0,0.00014836,2]
[421750316,1778099438000,-742.0,0.00014384,2]
[421750303,1778099438000,-1000.0,0.00013699,2]
[421750299,1778099438000,-500.0,0.00013467,2]
[421750300,1778099438000,-10000.0,0.00013467,2]
[421750323,1778099438000,-500.0,0.0001489,2]
[421750282,1778099438000,-300.0,0.00012108,2]
[421750281,1778099438000,-300.0,0.00012108,2]
[421750284,1778099438000,-300.0,0.00012108,2]
[421750286,1778099438000,-300.0,0.00012108,2]
[421750285,1778099438000,-300.0,0.00012108,2]
[421750283,1778099438000,-300.0,0.00012108,2]
[421750287,1778099438000,-300.0,0.00012108,2]
[421750288,1778099438000,-300.0,0.00012108,2]
[421750293,1778099438000,-59.90415385,0.00012108,2]
[421750294,1778099438000,-240.09584615,0.00012108,2]
[421750295,1778099438000,-300.0,0.00012108,2]
[421750290,1778099438000,-186.33038986,0.00012108,2]
[421750289,1778099438000,-300.0,0.00012108,2]
[421750291,1778099438000,-113.66961014,0.00012108,2]
[421750296,1778099438000,-300.0,0.00012108,2]
[421750292,1778099438000,-300.0,0.00012108,2]
[421750297,1778099438000,-292.3595991,0.00012732,2]
[421750298,1778099438000,-152.0,0.00012947,30]
[421750306,1778099438000,-500.0,0.00013741,2]
[421750324,1778099438000,-500.0,0.0001489,2]
[421750345,1778099438000,-1435.90639285,0.0001489,2]
[421750326,1778099438000,-500.0,0.0001489,2]
[421750350,1778099438000,-1507.7017125,0.0001489,2]
[421750354,1778099438000,-1507.7017125,0.0001489,2]
[421750352,1778099438000,-1507.7017125,0.0001489,2]
[421750353,1778099438000,-1507.7017125,0.0001489,2]
[421750349,1778099438000,-1507.7017125,0.0001489,2]
[421750355,1778099438000,-1507.7017125,0.0001489,2]
[421750357,1778099438000,-1507.7017125,0.0001489,2]
[421750356,1778099438000,-1507.7017125,0.0001489,2]
[421750360,1778099438000,-1688.62591799,0.0001489,2]
[421750361,1778099438000,-550261.92165526,0.00014891,2]
[421750358,1778099438000,-1507.7017125,0.0001489,2]
[421750359,1778099438000,-1507.7017125,0.0001489,2]
[421750364,1778099438000,-240.19365354,0.000149,2]
[421750363,1778099438000,-240.19365354,0.000149,2]
[421750365,1778099438000,-557.5788265,0.00014902,2]
[421750366,1778099438000,-162.380719,0.00014903,2]
[421750369,1778099438000,-537.6845,0.00014903,2]
[421750367,1778099438000,-151.0,0.00014903,2]
[421750368,1778099438000,-445.202766,0.00014903,2]
[421750351,1778099438000,-1507.7017125,0.0001489,2]
[421750348,1778099438000,-1507.7017125,0.0001489,2]
[421750362,1778099438000,-240.19365356,0.000149,2]
[421750370,1778099438000,-15654.77681735,0.00014912,2]
[421750347,1778099438000,-1435.90639285,0.0001489,2]
[421750327,1778099438000,-577.96223291,0.0001489,2]
[421750330,1778099438000,-500.0,0.0001489,2]
[421750329,1778099438000,-434.67168673,0.0001489,2]
[421750328,1778099438000,-397.98040538,0.0001489,2]
[421750332,1778099438000,-497.96912967,0.0001489,2]
[421750331,1778099438000,-500.0,0.0001489,2]
[421750334,1778099438000,-1435.90639285,0.0001489,2]
[421750333,1778099438000,-1435.90639285,0.0001489,2]
[421750335,1778099438000,-1435.90639285,0.0001489,2]
[421750325,1778099438000,-500.0,0.0001489,2]
[421750337,1778099438000,-1435.90639285,0.0001489,2]
[421750336,1778099438000,-1435.90639285,0.0001489,2]
[421750338,1778099438000,-1435.90639285,0.0001489,2]
[421750339,1778099438000,-1435.90639285,0.0001489,2]
[421750343,1778099438000,-1435.90639285,0.0001489,2]
[421750341,1778099438000,-1435.90639285,0.0001489,2]
[421750340,1778099438000,-1435.90639285,0.0001489,2]
[421750342,1778099438000,-1435.90639285,0.0001489,2]
[421750344,1778099438000,-1435.90639285,0.0001489,2]
[421750346,1778099438000,-1435.90639285,0.0001489,2]
[421750371,1778099439000,-1756.27966031,0.00014912,2]
[421750372,1778099439000,-13461.20308494,0.00014912,2]
[421750398,1778099440000,-11515.60000023,0.00014912,2]
[421750410,1778099440000,-10561.80457648,0.00014912,2]
[421750407,1778099440000,-5739.08638021,0.00014912,2]
[421750412,1778099440000,-3687.01289079,0.00014912,2]
[421750493,1778099443000,-1664.85319521,0.00014912,2]
[421750495,1778099443000,-1393.10945299,0.00014912,2]
[421750494,1778099443000,-911.91340463,0.00014912,2]
[421750496,1778099443000,-928.45231351,0.00014912,2]
[421750497,1778099443000,-6951.16809614,0.00014912,2]
[421750498,1778099443000,-819.51562325,0.00014912,2]
[421750492,1778099443000,-4143.0169926,0.00014912,2]
[421750607,1778099446000,-2356.33022954,0.00014912,2]
[421750605,1778099446000,-1141.01724269,0.00014189,2]
[421750822,1778100638000,-160.0,0.00013391,2]
[421750820,1778100638000,-420.0,0.00012701,2]
[421750829,1778100638000,-279.5886012,0.00013666,2]
[421750828,1778100638000,-1647.06224228,0.00013599,2]
[421750818,1778100638000,-189.74,0.00012329,2]
[421750816,1778100638000,-22.59022244,0.00011566,2]
[421750814,1778100638000,-3322.70358575,0.00011566,2]
[421750810,1778100638000,-2268.80286549,0.00011466,2]
[421750811,1778100638000,-300.0,0.00011565,2]
[421750813,1778100638000,-1780.70486626,0.00011566,2]
[421750812,1778100638000,-1200.0,0.00011565,2]
[421750809,1778100638000,-3710.29358064,0.00011351,2]
[421750815,1778100638000,-2000.38884425,0.00011566,2]
[421750808,1778100638000,-1289.70641936,0.00011351,2]
[421750817,1778100638000,-236.93949254,0.00011666,2]
[421750819,1778100638000,-10000.0,0.00012561,2]
[421750825,1778100638000,-161.57016804,0.00013461,2]
[421750834,1778100638000,-11488.0,0.000137,2]
[421750835,1778100638000,-354.27274941,0.0001373,2]
[421750832,1778100638000,-1000.0,0.00013699,2]
[421750833,1778100638000,-1000.0,0.00013699,2]
[421750830,1778100638000,-256.58003661,0.00013699,2]
[421750836,1778100638000,-165.6342326,0.00013741,2]
[421750826,1778100638000,-160.0,0.00013461,2]
[421750824,1778100638000,-500.0,0.00013456,2]
[421750823,1778100638000,-160.0,0.00013391,2]
[421750827,1778100638000,-1198.06,0.00013467,2]
[421750821,1778100638000,-500.0,0.00013182,2]
[421750831,1778100638000,-179.5554944,0.00013699,2]
[421750838,1778100640000,-537.6845,0.00013928,2]
[421750839,1778100640000,-445.202766,0.00013928,2]
[421750837,1778100640000,-1032.4257674,0.00013741,2]
[421750840,1778100640000,-151.0,0.00013928,2]
[421750841,1778100640000,-537.68450001,0.00013928,2]
[421750844,1778100640000,-578.20924308,0.00014038,2]
[421750843,1778100640000,-1198.06,0.00014015,2]
[421750847,1778100640000,-722.39311642,0.00014175,2]
[421750845,1778100640000,-599.60298507,0.00014093,2]
[421750846,1778100640000,-621.78829552,0.00014148,2]
[421750842,1778100640000,-557.5788265,0.00013983,2]
[421750859,1778100643000,-4467.65454512,0.00011237,2]
[421750860,1778100643000,-532.34545488,0.00011237,2]
[421750861,1778100643000,-583.4380798,0.00014175,2]
[421750870,1778100646000,-1326.53801658,0.00014175,2]
[421750890,1778101518000,2710.75559043,7.6e-05,2]
[421751004,1778101838000,-300.0,0.00012543,2]
[421751006,1778101838000,-300.0,0.00012543,2]
[421751008,1778101838000,-160.0,0.0001292,2]
[421751010,1778101838000,-161.57016804,0.00012929,2]
[421751009,1778101838000,-160.0,0.00012929,2]
[421751012,1778101838000,-341.0,0.0001295,2]
[421751011,1778101838000,-172.7475,0.0001293,2]
[421751014,1778101838000,-3264.35180287,0.00012971,2]
[421751017,1778101838000,-25638.1874588,0.00013071,2]
[421751013,1778101838000,-250.0,0.0001295,2]
[421751007,1778101838000,-160.0,0.0001292,2]
[421751015,1778101838000,-616.22,0.0001307,2]
[421751019,1778101838000,-427.7517887,0.00013071,2]
[421751018,1778101838000,-6980.1128576,0.00013071,2]
[421751020,1778101838000,-600.0,0.00013323,2]
[421751022,1778101838000,-1100.4,0.00013344,2]
[421751023,1778101838000,-616.22,0.00013618,2]
[421751025,1778101838000,-500.0,0.00013698,2]
[421751016,1778101838000,-1100.4,0.0001307,2]
[421751005,1778101838000,-300.0,0.00012543,2]
[421750989,1778101838000,-152.0,0.00011839,7]
[421751001,1778101838000,-300.0,0.00012543,2]
[421751024,1778101838000,-1100.4,0.00013618,2]
[421750983,1778101838000,-5000.0,9.606e-05,2]
[421750984,1778101838000,-523.60051223,9.703e-05,2]
[421750986,1778101838000,-503.56012524,0.0001,2]
[421750987,1778101838000,-300.0,0.00011794,2]
[421750985,1778101838000,-278.95213907,9.851e-05,2]
[421750988,1778101838000,-10000.0,0.00011795,2]
[421750991,1778101838000,-160.0,0.00012276,2]
[421750990,1778101838000,-329.1635241,0.00011851,2]
[421750994,1778101838000,-300.0,0.00012543,2]
[421750993,1778101838000,-300.0,0.00012543,2]
[421750992,1778101838000,-300.0,0.00012543,2]
[421750996,1778101838000,-300.0,0.00012543,2]
[421750995,1778101838000,-300.0,0.00012543,2]
[421750997,1778101838000,-300.0,0.00012543,2]
[421750999,1778101838000,-300.0,0.00012543,2]
[421751003,1778101838000,-300.0,0.00012543,2]
[421751002,1778101838000,-300.0,0.00012543,2]
[421751000,1778101838000,-300.0,0.00012543,2]
[421750998,1778101838000,-300.0,0.00012543,2]
[421751021,1778101838000,-616.22,0.00013344,2]
[421751067,1778101838000,-500.0,0.00013826,2]
[421751027,1778101838000,-500.0,0.00013698,2]
[421751052,1778101838000,-151.0,0.00013819,2]
[421751055,1778101838000,-300.89714103,0.00013819,2]
[421751056,1778101838000,-500.0,0.00013826,2]
[421751054,1778101838000,-151.0,0.00013819,2]
[421751051,1778101838000,-151.0,0.00013819,2]
[421751053,1778101838000,-151.0,0.00013819,2]
[421751058,1778101838000,-500.0,0.00013826,2]
[421751057,1778101838000,-500.0,0.00013826,2]
[421751049,1778101838000,-151.0,0.00013819,2]
[421751059,1778101838000,-221.9001347,0.00013826,2]
[421751060,1778101838000,-500.0,0.00013826,2]
[421751062,1778101838000,-500.0,0.00013826,2]
[421751064,1778101838000,-500.0,0.00013826,2]
[421751066,1778101838000,-500.0,0.00013826,2]
[421751069,1778101838000,-500.0,0.00013826,2]
[421751068,1778101838000,-336.66527674,0.00013826,2]
[421751065,1778101838000,-500.0,0.00013826,2]
[421751026,1778101838000,-500.0,0.00013698,2]
[421751061,1778101838000,-500.0,0.00013826,2]
[421751047,1778101838000,-151.0,0.00013819,2]
[421751063,1778101838000,-500.0,0.00013826,2]
[421751046,1778101838000,-151.0,0.00013819,2]
[421751048,1778101838000,-151.0,0.00013819,2]
[421751028,1778101838000,-500.0,0.00013698,2]
[421751029,1778101838000,-1911.49,0.00013698,2]
[421751030,1778101838000,-1911.49,0.00013698,2]
[421751031,1778101838000,-500.0,0.00013698,2]
[421751032,1778101838000,-500.0,0.00013698,2]
[421751035,1778101838000,-500.0,0.00013698,2]
[421751037,1778101838000,-1000.0,0.00013699,2]
[421751034,1778101838000,-500.0,0.00013698,2]
[421751033,1778101838000,-500.0,0.00013698,2]
[421751036,1778101838000,-500.0,0.00013698,2]
[421751040,1778101838000,-180.44363126,0.00013699,2]
[421751039,1778101838000,-326.0,0.00013699,2]
[421751041,1778101838000,-145.35664213,0.0001373,2]
[421751042,1778101838000,-168.64335787,0.0001373,2]
[421751043,1778101838000,-314.0,0.0001373,2]
[421751045,1778101838000,-180.0,0.00013819,2]
[421751044,1778101838000,-314.0,0.0001373,2]
[421751038,1778101838000,-493.55636874,0.00013699,2]
[421751050,1778101838000,-151.0,0.00013819,2]
[421751085,1778101839000,-1143.46576218,0.00013827,2]
[421751086,1778101839000,-1143.46576218,0.00013827,2]
[421751087,1778101839000,-1143.46576218,0.00013827,2]
[421751088,1778101839000,-1143.46576218,0.00013827,2]
[421751089,1778101839000,-1143.46576218,0.00013827,2]
[421751091,1778101839000,-1143.46576218,0.00013827,2]
[421751093,1778101839000,-1143.46576218,0.00013827,2]
[421751094,1778101839000,-1143.46576218,0.00013827,2]
[421751095,1778101839000,-1143.46576218,0.00013827,2]
[421751084,1778101839000,-1143.46576218,0.00013827,2]
[421751092,1778101839000,-1143.46576218,0.00013827,2]
[421751090,1778101839000,-1143.46576218,0.00013827,2]
[421751083,1778101839000,-1143.46576218,0.00013827,2]
[421751075,1778101839000,-336.3226302,0.00013826,2]
[421751081,1778101839000,-1143.46576218,0.00013827,2]
[421751079,1778101839000,-356.19046463,0.00013827,2]
[421751080,1778101839000,-304.27018071,0.00013827,2]
[421751078,1778101839000,-500.0,0.00013826,2]
[421751077,1778101839000,-500.0,0.00013826,2]
[421751073,1778101839000,-500.0,0.00013826,2]
[421751074,1778101839000,-500.0,0.00013826,2]
[421751076,1778101839000,-500.0,0.00013826,2]
[421751071,1778101839000,-500.0,0.00013826,2]
[421751072,1778101839000,-500.0,0.00013826,2]
[421751070,1778101839000,-500.0,0.00013826,2]
[421751096,1778101839000,-1143.46576218,0.00013827,2]
[421751082,1778101839000,-1143.46576218,0.00013827,2]
[421751097,1778101839000,-1143.46576218,0.00013827,2]
[421751109,1778101839000,-500.0,0.00013827,2]
[421751098,1778101839000,-1143.46576218,0.00013827,2]
[421751126,1778101839000,-227141.75279285,0.00013828,2]
[421751125,1778101839000,-9202.64118539,0.00013828,2]
[421751124,1778101839000,-511.3,0.00013827,2]
[421751123,1778101839000,-500.0,0.00013827,2]
[421751099,1778101839000,-1200.63905028,0.00013827,2]
[421751119,1778101839000,-500.0,0.00013827,2]
[421751121,1778101839000,-500.0,0.00013827,2]
[421751120,1778101839000,-500.0,0.00013827,2]
[421751117,1778101839000,-500.0,0.00013827,2]
[421751118,1778101839000,-500.0,0.00013827,2]
[421751115,1778101839000,-500.0,0.00013827,2]
[421751116,1778101839000,-500.0,0.00013827,2]
[421751114,1778101839000,-500.0,0.00013827,2]
[421751122,1778101839000,-500.0,0.00013827,2]
[421751112,1778101839000,-500.0,0.00013827,2]
[421751113,1778101839000,-500.0,0.00013827,2]
[421751110,1778101839000,-500.0,0.00013827,2]
[421751101,1778101839000,-1200.63905028,0.00013827,2]
[421751108,1778101839000,-500.0,0.00013827,2]
[421751107,1778101839000,-1200.63905028,0.00013827,2]
[421751106,1778101839000,-1200.63905028,0.00013827,2]
[421751104,1778101839000,-1200.63905028,0.00013827,2]
[421751105,1778101839000,-1200.63905028,0.00013827,2]
[421751103,1778101839000,-1200.63905028,0.00013827,2]
[421751100,1778101839000,-1200.63905028,0.00013827,2]
[421751102,1778101839000,-1200.63905028,0.00013827,2]
[421751111,1778101839000,-500.0,0.00013827,2]
[421751160,1778101846000,-857.01385346,0.00013828,2]
[421751158,1778101846000,-1365.08688612,0.00013828,2]
[421751157,1778101846000,-16476.47080799,0.00013828,2]
[421751171,1778102779000,-5000.0,0.0001166,2]
[421751172,1778102812000,-5000.0,0.0001166,2]
[421751173,1778102928000,-1500.0,0.0001166,2]
[421751220,1778103032000,-273.38123691,0.00011719,2]
[421751223,1778103032000,-2618.0604806,0.00012213,2]
[421751222,1778103032000,-152.0,0.00011841,7]
[421751225,1778103032000,-161.57016804,0.00012855,2]
[421751227,1778103032000,-151.0,0.00013431,2]
[421751232,1778103032000,-500.0,0.00013698,2]
[421751228,1778103032000,-737.0,0.00013697,2]
[421751240,1778103032000,-2856.30782752,0.00013728,2]
[421751230,1778103032000,-500.0,0.00013698,2]
[421751235,1778103032000,-1000.0,0.00013699,2]
[421751237,1778103032000,-1000.0,0.00013699,2]
[421751239,1778103032000,-322.58985955,0.00013719,2]
[421751241,1778103032000,-500.0,0.00013826,2]
[421751234,1778103032000,-300.0,0.00013698,2]
[421751244,1778103032000,-962.85,0.00013826,2]
[421751242,1778103032000,-1752.2,0.00013826,2]
[421751247,1778103032000,-6993.4603145,0.00013827,2]
[421751245,1778103032000,-1074.01084784,0.00013827,2]
[421751248,1778103032000,-500.0,0.00013827,2]
[421751246,1778103032000,-1283.2553661,0.00013827,2]
[421751250,1778103032000,-1000.0,0.00013828,2]
[421751249,1778103032000,-500.0,0.00013827,2]
[421751251,1778103032000,-1000.0,0.00013828,2]
[421751252,1778103032000,-667.42656494,0.00013828,2]
[421751253,1778103032000,-500.0,0.00013828,2]
[421751254,1778103032000,-1000.0,0.00013828,2]
[421751255,1778103032000,-328.86302642,0.00013828,2]
[421751243,1778103032000,-539.2,0.00013826,2]
[421751270,1778103038000,-152.0,0.0001313,30]
[421751272,1778103038000,-671.13697358,0.00013828,2]
[421751271,1778103038000,-152.0,0.0001379,2]
[421751273,1778103038000,-1000.0,0.00013828,2]
[421751274,1778103038000,-898.10322021,0.00013828,2]
[421751297,1778103043000,-935.48640021,0.00013828,2]
[421751296,1778103043000,-101.89677979,0.00013828,2]
[421751304,1778103046000,-151.0,0.00013828,2]
[421751307,1778103046000,-151.0,0.00013828,2]
[421751306,1778103046000,-151.0,0.00013828,2]
[421751308,1778103046000,-151.0,0.00013828,2]
[421751309,1778103046000,-151.0,0.00013828,2]
[421751305,1778103046000,-151.0,0.00013828,2]
[421751303,1778103046000,-180.99523797,0.00013828,2]
[421751302,1778103046000,-75.87432049,0.00013828,2]
[421751311,1778103047000,-151.5,0.00013829,2]
[421751312,1778103047000,-151.5,0.00013829,2]
[421751310,1778103047000,-156.13870025,0.00013828,2]
[421751315,1778103047000,-1213.35015545,0.00014052,2]
[421751316,1778103047000,-671.2108709,0.00014052,2]
[421751314,1778103047000,-167.46,0.00014039,2]
[421751313,1778103047000,-198.74734114,0.00013829,2]
[421751321,1778103269000,187.34601754,0.00018159,120]
[421751377,1778104232000,-152.0,0.00013826,30]
[421751385,1778104232000,-2200.54497531,0.00013898,2]
[421751371,1778104232000,-161.57016804,0.00013514,2]
[421751370,1778104232000,-261.46181498,0.00011838,2]
[421751375,1778104232000,-1000.0,0.00013699,2]
[421751379,1778104232000,-922.73,0.00013826,2]
[421751381,1778104232000,-501.316,0.00013837,2]
[421751383,1778104232000,-308.52494167,0.00013838,2]
[421751373,1778104232000,-1000.0,0.00013699,2]
[421751514,1778104238000,-2149.30487411,0.000139,2]
[421751508,1778104238000,-1906.30761698,0.00013899,2]
[421751509,1778104238000,-2967.37238302,0.00013899,2]
[421751512,1778104238000,-1966.12937061,0.000139,2]
[421751507,1778104238000,-298.72437377,0.00013898,2]
[421751510,1778104238000,-7866.27112062,0.00013899,2]
[421751511,1778104238000,-811.7930764,0.000139,2]
[421751525,1778104238000,-153.63448258,0.00013998,2]
[421751523,1778104238000,-500.0,0.00013998,2]
[421751516,1778104238000,-165.712832,0.00013992,2]
[421751519,1778104238000,-232.34705367,0.00013992,2]
[421751513,1778104238000,-1953.54627322,0.000139,2]
[421751515,1778104238000,-1782.9538672,0.000139,2]
[421751518,1778104238000,-445.202766,0.00013992,2]
[421751524,1778104238000,-1525.55551742,0.00013998,2]
[421751517,1778104238000,-537.6845,0.00013992,2]
[421751526,1778104238000,-550.58553942,0.00013998,2]
[421751521,1778104238000,-151.0,0.00013992,2]
[421751520,1778104238000,-537.6845,0.00013992,2]
[421751522,1778104238000,-500.0,0.00013998,2]
[421751546,1778104243000,-287.41003066,0.00013998,2]
[421751547,1778104243000,-841.19442992,0.00013998,2]
[421751548,1778104243000,-516.73,0.00013998,2]
[421751549,1778104243000,-500.0,0.00013998,2]
[421751550,1778104243000,-500.0,0.00013999,2]
[421751572,1778104244000,-1679.19,0.00013999,2]
[421751551,1778104244000,-500.0,0.00013999,2]
[421751552,1778104244000,-500.0,0.00013999,2]
[421751553,1778104244000,-500.0,0.00013999,2]
[421751561,1778104244000,-500.0,0.00013999,2]
[421751560,1778104244000,-564.83,0.00013999,2]
[421751557,1778104244000,-500.0,0.00013999,2]
[421751554,1778104244000,-500.0,0.00013999,2]
[421751563,1778104244000,-263.54,0.00013999,2]
[421751559,1778104244000,-500.0,0.00013999,2]
[421751556,1778104244000,-498.08040277,0.00013999,2]
[421751570,1778104244000,-1679.19,0.00013999,2]
[421751558,1778104244000,-500.0,0.00013999,2]
[421751564,1778104244000,-1679.19,0.00013999,2]
[421751562,1778104244000,-500.0,0.00013999,2]
[421751565,1778104244000,-1679.19,0.00013999,2]
[421751568,1778104244000,-1679.19,0.00013999,2]
[421751567,1778104244000,-1679.19,0.00013999,2]
[421751573,1778104244000,-1615.3148167,0.00013999,2]
[421751575,1778104244000,-436.1248167,0.00013999,2]
[421751569,1778104244000,-1679.19,0.00013999,2]
[421751574,1778104244000,-63.8751833,0.00013999,2]
[421751571,1778104244000,-1679.19,0.00013999,2]
[421751566,1778104244000,-1679.19,0.00013999,2]
[421751555,1778104244000,-500.0,0.00013999,2]
[421751588,1778104247000,-1243.0651833,0.00013999,2]
[421751589,1778104247000,-1679.19,0.00013999,2]
[421751590,1778104247000,-1679.19,0.00013999,2]
[421751591,1778104247000,-1679.19,0.00013999,2]
[421751594,1778104247000,-1194.3238026,0.00013999,2]
[421751592,1778104247000,-1679.19,0.00013999,2]
[421751593,1778104247000,-1679.19,0.00013999,2]
[421751600,1778105022000,1532.00963945,0.00017637,120]
[421751602,1778105023000,1532.00963945,0.00017694,120]
[421751601,1778105023000,1532.00963945,0.00017666,120]
[421751604,1778105024000,1532.00963945,0.0001775,120]
[421751603,1778105024000,1532.00963945,0.00017722,120]
[421751622,1778105381000,500000.0,0.0001972,120]
[421751646,1778105438000,-300.0,0.00010199,2]
[421751648,1778105438000,-300.0,0.00010199,2]
[421751649,1778105438000,-300.0,0.00010199,2]
[421751653,1778105438000,-300.0,0.00010199,2]
[421751651,1778105438000,-300.0,0.00010199,2]
[421751650,1778105438000,-300.0,0.00010199,2]
[421751654,1778105438000,-300.0,0.00010199,2]
[421751647,1778105438000,-300.0,0.00010199,2]
[421751652,1778105438000,-300.0,0.00010199,2]
[421751644,1778105438000,-300.0,0.00010199,2]
[421751637,1778105438000,-5497.72452023,0.0001,2]
[421751655,1778105438000,-152.0,0.00011837,7]
[421751643,1778105438000,-300.0,0.00010199,2]
[421751639,1778105438000,-264.28911451,0.000101,2]
[421751640,1778105438000,-300.0,0.00010199,2]
[421751638,1778105438000,-2383.09424215,0.0001,2]
[421751642,1778105438000,-300.0,0.00010199,2]
[421751641,1778105438000,-300.0,0.00010199,2]
[421751636,1778105438000,-618.07140816,0.0001,2]
[421751658,1778105438000,-657.0,0.00012893,2]
[421751656,1778105438000,-152.0,0.00011837,7]
[421751669,1778105438000,-253.31474011,0.0001369,7]
[421751645,1778105438000,-300.0,0.00010199,2]
[421751657,1778105438000,-311.86115512,0.000121,2]
[421751668,1778105438000,-253.31474011,0.0001369,7]
[421751679,1778105438000,-500.0,0.00013724,2]
[421751678,1778105438000,-500.0,0.00013724,2]
[421751674,1778105438000,-162.87648604,0.00013724,2]
[421751673,1778105438000,-152.58072528,0.00013724,2]
[421751675,1778105438000,-500.0,0.00013724,2]
[421751676,1778105438000,-188.89730724,0.00013724,2]
[421751677,1778105438000,-335.32537622,0.00013724,2]
[421751671,1778105438000,-1000.0,0.00013699,2]
[421751680,1778105438000,-500.0,0.00013724,2]
[421751682,1778105438000,-69.48818703,0.00013724,2]
[421751681,1778105438000,-500.0,0.00013724,2]
[421751667,1778105438000,-253.31474011,0.0001369,7]
[421751672,1778105438000,-1000.0,0.00013699,2]
[421751659,1778105438000,-200.0,0.00013068,2]
[421751662,1778105438000,-161.57016804,0.00013448,2]
[421751661,1778105438000,-250.0,0.00013213,2]
[421751663,1778105438000,-152.0,0.00013478,30]
[421751670,1778105438000,-253.31474011,0.0001369,7]
[421751665,1778105438000,-151.5,0.00013624,2]
[421751660,1778105438000,-200.0,0.00013068,7]
[421751664,1778105438000,-151.5,0.00013624,2]
[421751666,1778105438000,-198.74734114,0.00013624,2]